bitfinex-derivatives/quotes_ETHF0:USTF0_20240924
["timestamp","ask_amount","ask_price","bid_price","bid_amount"]
[1727188393410,0.38403,2603.9,2603.5,3.2078]
[1727188393801,0.38402,2603.9,2603.5,3.2078]
[1727188394005,3.32,2604.2,2603.5,3.2078]
[1727188394203,0.38403,2603.8,2603.5,3.2078]
[1727188394400,0.38403,2603.8,2603.3,2.4169]
[1727188394401,3.32,2603.9,2603.6,3.2078]
[1727188394602,6.5278,2603.9,2603.3,2.4169]
[1727188395307,4.28006,2603.9,2603.3,2.4169]
[1727188395508,0.38405,2603.7,2603.3,2.4169]
[1727188395704,0.38406,2603.6,2603.5,3.2078]
[1727188395905,0.38406,2603.6,2603.3,2.4169]
[1727188396317,3.32,2603.9,2603.3,2.4169]
[1727188396318,0.38408,2603.5,2603.3,2.4169]
[1727188396618,0.38407,2603.6,2603.3,2.4169]
[1727188396807,3.32,2603.9,2603.5,3.2078]
[1727188397014,3.2078,2604.2,2603.5,3.2078]
[1727188397315,3.2078,2604.2,2603.5,3.59187]
[1727188397316,0.38399,2604.1,2603.5,3.59187]
[1727188397505,3.32,2604.3,2603.5,3.59187]
[1727188397506,4.27993,2604.3,2603.5,3.2078]
[1727188397707,3.32,2604.3,2603.5,3.2078]
[1727188398108,0.38402,2603.9,2603.5,3.2078]
[1727188398314,0.38401,2604.0,2603.5,3.2078]
[1727188398513,4.77386292,2604.3,2603.5,3.2078]
[1727188398833,3.32,2603.9,2603.3,2.4169]
[1727188399019,0.38409,2603.4,2603.3,2.4169]
[1727188399213,0.96015,2603.7,2603.2,3.2078]
[1727188399411,0.3841,2603.3,2603.2,3.2078]
[1727188399613,6.5278,2603.6,2602.9,2.3386]
[1727188399614,0.38415,2603.0,2602.9,2.3386]
[1727188399821,0.38418,2602.8,2602.7,3.2078]
[1727188400114,4.22658,2602.8,2602.7,3.2078]
[1727188400737,0.38424,2602.4,2601.8,0.38431]
[1727188400915,0.38423,2602.5,2602.1,3.2078]
[1727188401122,0.96052,2602.7,2602.0,3.2078]
[1727188401320,0.3843,2602.0,2601.7,7.8537]
[1727188401523,4.28056,2602.5,2601.7,7.8537]
[1727188401725,0.38428,2602.2,2602.1,3.2078]
[1727188402131,3.8432,2602.2,2601.7,4.6459]
[1727188402430,5.73442292,2602.5,2602.1,3.2078]
[1727188402730,0.9607,2602.2,2601.9,3.2078]
[1727188402928,0.9607,2602.2,2600.4,3.32]
[1727188402929,3.32,2602.1,2601.1,3.2078]
[1727188403122,3.32,2602.1,2600.9,2.69175]
[1727188403123,0.96078,2601.9,2601.6,3.2078]
[1727188403322,0.38441,2601.3,2601.1,3.2078]
[1727188403526,4.16866,2601.7,2601.1,3.2078]
[1727188403720,5.62252292,2601.7,2601.1,3.2078]
[1727188403925,0.38439,2601.4,2601.1,3.2078]
[1727188404124,3.2078,2601.7,2601.1,3.2078]
[1727188404332,0.96089,2601.6,2601.1,3.2078]
[1727188404631,0.38441,2601.2,2601.1,3.2078]
[1727188404830,0.3844,2601.4,2601.1,3.2078]
[1727188405020,0.96401595,2601.6,2601.1,3.2078]
[1727188405220,3.2078,2601.7,2601.1,3.2078]
[1727188405633,0.38435,2601.6,2601.1,3.2078]
[1727188405825,0.38432,2601.9,2601.4,3.2078]
[1727188406226,0.38433,2601.8,2601.4,3.2078]
[1727188406422,0.38432,2601.9,2601.4,3.2078]
[1727188406624,0.96401595,2602.3,2601.8,3.2078]
[1727188406823,1.92465595,2602.3,2601.5,3.2078]
[1727188407036,0.38432,2601.9,2601.5,3.2078]
[1727188407237,0.38437,2601.6,2601.2,3.2078]
[1727188407535,6.5278,2602.1,2601.2,3.2078]
[1727188407731,2.2535,2602.0,2601.2,3.2078]
[1727188407932,0.3844,2601.3,2601.2,3.2078]
[1727188408336,4.16862,2601.8,2601.2,3.2078]
[1727188408337,3.2078,2601.8,2601.2,3.2078]
[1727188408528,0.38435,2601.7,2601.2,3.2078]
[1727188408725,7.49181595,2602.1,2601.2,3.2078]
[1727188408930,0.38434,2601.7,2601.0,3.59223]
[1727188409124,0.38434,2601.7,2601.1,0.38442]
[1727188409435,0.38435,2601.7,2601.3,3.2078]
[1727188409832,0.38433,2601.8,2601.3,3.2078]
[1727188410029,6.5278,2602.1,2601.3,3.5922]
[1727188410238,6.5278,2602.1,2601.6,3.2078]
[1727188410239,3.59209,2602.1,2601.6,3.2078]
[1727188410431,7.49181595,2602.5,2601.6,3.59215]
[1727188410736,7.49181595,2602.5,2601.6,3.2078]
[1727188410737,6.5278,2602.5,2601.6,3.2078]
[1727188410927,0.38433,2601.8,2601.6,3.2078]
[1727188411237,0.38434,2601.7,2601.6,3.2078]
[1727188411428,3.32,2602.1,2601.6,3.2078]
[1727188411630,7.48838,2602.5,2601.6,3.2078]
[1727188411824,0.38432,2601.9,2601.6,3.2078]
[1727188412038,0.3843,2602.0,2601.6,3.2078]
[1727188412335,1.45386292,2602.8,2601.1,2.2631]
[1727188412336,4.17181595,2603.1,2601.9,3.2078]
[1727188412536,0.38416,2602.9,2602.5,3.2078]
[1727188412727,3.2078,2603.1,2602.5,3.2078]
[1727188412728,0.38415,2603.0,2602.5,3.2078]
[1727188413428,2.3898,2603.4,2602.5,3.2078]
[1727188413631,3.32,2603.6,2602.8,3.2078]
[1727188413844,0.38415,2603.0,2602.8,3.2078]
[1727188414538,0.38408,2603.5,2602.8,7.0494]
[1727188414734,0.38408,2603.5,2602.9,2.182]
[1727188415147,0.38409,2603.4,2602.9,2.182]
[1727188415438,0.38407,2603.5,2602.9,2.182]
[1727188415632,6.5278,2603.6,2602.9,2.182]
[1727188415830,0.38413,2603.2,2602.9,2.182]
[1727188416037,0.38411,2603.3,2602.9,2.182]
[1727188416246,6.5278,2603.6,2602.9,2.182]
[1727188416440,0.38408,2603.5,2603.1,3.2078]
[1727188417040,3.70407,2603.6,2603.1,3.2078]
[1727188417343,0.96401595,2604.1,2603.4,3.2078]
[1727188417537,0.38403,2603.9,2603.4,3.2078]
[1727188417738,0.96401595,2604.2,2603.4,3.2078]
[1727188417739,0.38401,2604.0,2603.4,3.2078]
[1727188417936,0.38402,2603.9,2603.4,3.2078]
[1727188418443,5.13174595,2604.2,2603.4,3.2078]
[1727188418642,0.38404,2603.8,2603.1,3.2078]
[1727188418838,3.70402,2603.9,2603.1,3.2078]
[1727188419033,3.70402,2603.9,2603.4,3.2078]
[1727188419240,0.38403,2603.8,2603.4,3.2078]
[1727188419435,3.32,2603.9,2603.4,3.2078]
[1727188419642,0.38404,2603.8,2603.4,3.2078]
[1727188419941,3.70402,2603.9,2603.4,3.2078]
[1727188420642,3.32,2603.9,2603.4,3.2078]
[1727188421252,3.70402,2603.9,2603.4,3.2078]
[1727188422446,0.38404,2603.8,2603.4,3.2078]
[1727188422743,3.32,2603.9,2603.4,3.2078]
[1727188422949,0.38404,2603.8,2603.4,3.2078]
[1727188423335,0.38405,2603.7,2603.4,3.2078]
[1727188423546,0.38407,2603.6,2603.4,3.2078]
[1727188423858,3.2078,2603.8,2603.4,3.2078]
[1727188424143,3.32,2603.9,2603.4,3.2078]
[1727188424344,0.38402,2603.9,2603.4,3.2078]
[1727188424545,3.2078,2604.1,2603.5,2.1814]
[1727188424742,0.38406,2603.6,2603.5,2.1814]
[1727188424948,0.38407,2603.5,2603.4,3.2078]
[1727188425353,0.38413,2603.1,2603.0,2.1814]
[1727188425552,3.32,2603.6,2602.9,5.3898]
[1727188425849,0.38412,2603.2,2602.9,5.3898]
[1727188426048,0.38411,2603.3,2602.9,5.3898]
[1727188426251,3.32,2603.6,2602.9,5.3898]
[1727188426746,0.38411,2603.3,2602.9,5.3898]
[1727188427146,0.38412,2603.2,2602.9,2.182]
[1727188427346,0.38413,2603.1,2603.0,3.2078]
[1727188427547,0.38409,2603.4,2603.0,3.2078]
[1727188427947,0.38415,2603.0,2602.9,2.182]
[1727188428246,0.38415,2603.0,2602.4,2.1814]
[1727188428247,0.38421,2602.6,2602.4,2.1814]
[1727188428448,0.96038,2603.0,2602.4,5.3892]
[1727188428449,0.38422,2602.5,2602.4,5.3892]
[1727188428753,0.38427,2602.2,2601.9,4.7504]
[1727188429050,0.38427,2602.2,2602.1,3.2078]
[1727188429650,2.95,2602.7,2602.1,3.2078]
[1727188429849,0.96048,2602.8,2602.1,3.2078]
[1727188430144,0.38422,2602.6,2602.1,3.59208]
[1727188430351,0.38422,2602.6,2601.9,2.3904]
[1727188430352,0.38419,2602.8,2602.5,3.2078]
[1727188430550,0.38418,2602.9,2602.5,3.2078]
[1727188431251,0.38417,2602.9,2602.5,5.5546]
[1727188431550,0.38419,2602.8,2602.5,5.5546]
[1727188431850,3.2078,2603.0,2602.6,4.3888342]
[1727188431851,0.38416,2603.0,2602.6,4.3888342]
[1727188432057,0.38416,2603.0,2602.9,3.2078]
[1727188432445,0.96027,2603.3,2602.9,3.2078]
[1727188432648,0.38416,2603.0,2602.5,2.73102]
[1727188432949,0.38412,2603.2,2602.8,0.38417]
[1727188433148,0.3841,2603.4,2603.0,3.59194]
[1727188433448,0.38408,2603.5,2603.1,0.38413]
[1727188433656,0.96016,2603.6,2603.0,3.2078]
[1727188433949,0.38412,2603.2,2603.0,3.2078]
[1727188434349,0.38412,2603.2,2603.0,7.0494]
[1727188434665,0.38413,2603.1,2603.0,7.0494]
[1727188434858,1.34447,2603.1,2603.0,3.2078]
[1727188435155,0.38415,2603.0,2602.9,2.2364]
[1727188436661,0.38424,2602.5,2602.3,3.2078]
[1727188436952,0.38424,2602.4,2602.3,3.2078]
[1727188437144,0.38423,2602.5,2602.3,3.2078]
[1727188437347,4.28401595,2602.8,2602.3,3.2078]
[1727188437551,0.3842,2602.7,2602.3,3.2078]
[1727188437754,3.32,2602.8,2602.3,3.2078]
[1727188437957,0.38424,2602.4,2602.3,3.2078]
[1727188438350,0.3843,2602.0,2601.9,5.4035]
[1727188438550,0.3843,2602.0,2601.9,3.2078]
[1727188438749,0.3843,2602.0,2601.4,2.2931]
[1727188438750,0.38435,2601.7,2601.6,3.2078]
[1727188439246,4.28075,2602.0,2601.6,3.2078]
[1727188439247,3.32,2602.0,2601.6,3.2078]
[1727188439554,0.96068,2602.2,2601.6,3.2078]
[1727188439555,0.38433,2601.8,2601.6,3.2078]
[1727188439753,0.38432,2601.9,2601.6,3.2078]
[1727188439955,0.38433,2601.8,2601.6,3.2078]
[1727188440257,1.92469595,2602.2,2601.6,3.2078]
[1727188440258,0.38434,2601.7,2601.6,3.2078]
[1727188440456,0.96071,2602.1,2601.6,3.2078]
[1727188440653,0.38432,2601.9,2601.6,3.2078]
[1727188440952,0.38434,2601.7,2601.6,3.2078]
[1727188441157,10.56406849,2601.7,2600.9,3.2078]
[1727188441459,10.56406849,2601.7,2600.3,3.2078]
[1727188441460,4.28112,2601.0,2600.3,3.2078]
[1727188441658,4.28112,2601.0,2599.9,11.8429]
[1727188441659,3.32,2601.0,2600.5,3.2078]
[1727188441858,0.3845,2600.6,2600.5,3.2078]
[1727188442160,0.38456,2600.3,2600.0,3.2078]
[1727188442461,0.38456,2600.3,2599.9,11.8429]
[1727188442462,0.38459,2600.0,2599.9,3.2078]
[1727188442850,3.32,2600.3,2599.9,3.2078]
[1727188443055,0.38455,2600.3,2599.9,3.2078]
[1727188443250,3.2078,2600.5,2599.9,3.2078]
[1727188443454,0.9613,2600.5,2600.2,3.2078]
[1727188443755,0.38461,2599.9,2599.6,3.2078]
[1727188443962,0.3846,2600.0,2599.6,3.2078]
[1727188444155,0.38462,2599.9,2599.6,3.2078]
[1727188444362,6.7213954,2600.3,2599.6,3.2078]
[1727188444558,6.5278,2600.3,2599.6,3.2078]
[1727188444855,2.4082,2600.6,2599.9,3.2078]
[1727188445064,0.38454,2600.4,2599.9,3.2078]
[1727188445652,0.38455,2600.3,2599.9,3.2078]
[1727188445857,0.38453,2600.5,2599.9,3.2078]
[1727188446053,2.4082,2600.6,2599.9,3.2078]
[1727188446251,6.9123,2600.7,2599.9,3.2078]
[1727188446252,6.5278,2600.7,2599.9,3.2078]
[1727188446462,0.38452,2600.5,2599.9,3.2078]
[1727188446963,6.5278,2600.7,2599.9,3.2078]
[1727188447460,0.38455,2600.3,2599.9,3.2078]
[1727188447657,0.38452,2600.5,2599.9,3.2078]
[1727188447964,6.5278,2600.7,2599.9,3.2078]
[1727188448265,0.38446,2600.9,2600.4,3.2078]
[1727188448454,6.5278,2601.0,2600.4,3.2078]
[1727188449165,0.38446,2600.9,2600.4,3.2078]
[1727188449567,0.38448,2600.8,2600.4,3.2078]
[1727188449862,6.91225,2601.0,2600.4,3.2078]
[1727188450064,0.38447,2600.9,2600.4,3.2078]
[1727188450261,6.5278,2601.0,2600.4,3.2078]
[1727188450660,0.12021375,2601.5,2599.6,3.18182]
[1727188450661,3.70441,2601.3,2600.7,3.2078]
[1727188450866,0.38443,2601.1,2600.7,3.2078]
[1727188451065,3.32,2601.3,2600.7,3.2078]
[1727188451066,0.38445,2601.0,2600.7,3.2078]
[1727188451259,0.38443,2601.1,2600.7,3.2078]
[1727188451655,3.2078,2601.2,2600.7,3.2078]
[1727188452061,0.38445,2601.0,2600.7,3.2078]
[1727188452365,3.2078,2601.2,2600.7,3.2078]
[1727188453162,3.32,2601.3,2601.0,3.2078]
[1727188453564,0.38438,2601.4,2601.0,3.2078]
[1727188453865,3.70439,2601.4,2601.0,3.2078]
[1727188454164,8.774,2601.8,2601.3,3.2078]
[1727188454357,3.33436,2601.6,2601.3,3.2078]
[1727188454867,0.38437,2601.5,2601.3,3.2078]
[1727188455063,2.95,2601.6,2601.1,3.59223]
[1727188455264,2.95,2601.6,2601.4,3.2078]
[1727188455456,2.95,2601.9,2601.4,7.0518]
[1727188455662,2.95,2601.9,2601.4,3.2078]
[1727188456058,8.77673,2602.4,2601.7,3.2078]
[1727188456059,2.95,2602.3,2601.7,3.2078]
[1727188456260,0.38433,2601.8,2601.7,3.2078]
[1727188457060,0.38434,2601.7,2601.3,2.195]
[1727188457266,0.38434,2601.7,2601.6,3.2078]
[1727188459563,0.38438,2601.5,2601.3,2.195]
[1727188459768,0.3844,2601.3,2601.2,3.2078]
[1727188459966,0.38443,2601.1,2601.0,5.4154]
[1727188460171,0.38443,2601.1,2600.5,3.2078]
[1727188460172,6.0,2601.1,2600.5,3.2078]
[1727188460467,3.74,2600.9,2600.1,2.195]
[1727188460778,3.74,2600.9,2600.8,3.2078]
[1727188460779,4.12446,2600.9,2600.8,3.2078]
[1727188461079,4.12446,2600.9,2600.5,3.2078]
[1727188461080,0.3845,2600.6,2600.5,3.2078]
[1727188461259,3.74,2600.9,2600.5,3.2078]
[1727188461668,4.12447,2600.9,2600.5,3.2078]
[1727188461968,0.38448,2600.8,2600.5,3.2078]
[1727188462565,3.74,2600.9,2600.5,3.2078]
[1727188462872,0.38448,2600.8,2600.5,3.2078]
[1727188463373,4.70118,2600.9,2600.5,3.2078]
[1727188463670,0.3845,2600.6,2600.5,3.2078]
[1727188463968,0.38449,2600.7,2600.5,3.2078]
[1727188464159,0.3845,2600.6,2600.5,3.2078]
[1727188464861,0.96121,2600.8,2600.5,3.2078]
[1727188465061,1.34576,2600.6,2600.5,3.2078]
[1727188465267,0.38455,2600.3,2600.1,3.2078]
[1727188465765,0.96126,2600.6,2600.0,5.3844]
[1727188465766,0.38458,2600.1,2600.0,5.3844]
[1727188465965,0.20738,2600.1,2600.0,5.3844]
[1727188466959,0.38454,2600.4,2600.0,5.3844]
[1727188467161,4.16896,2600.9,2600.3,3.2078]
[1727188467162,7.90896,2600.9,2600.3,3.2078]
[1727188467364,0.38452,2600.5,2600.3,3.2078]
[1727188467567,0.38453,2600.4,2600.3,3.2078]
[1727188467967,4.70132,2600.5,2600.0,5.3844]
[1727188468164,0.38458,2600.1,2600.0,5.3844]
[1727188468362,3.74,2600.5,2600.0,5.3844]
[1727188468573,3.2078,2600.6,2600.0,5.3844]
[1727188468772,0.38452,2600.5,2600.0,5.76899]
[1727188468966,0.38452,2600.5,2600.0,5.3844]
[1727188469278,0.38452,2600.5,2598.5,3.74]
[1727188469279,4.23012,2600.5,2598.5,3.74]
[1727188469573,0.38469,2599.3,2599.2,3.2078]
[1727188469772,0.38469,2599.3,2599.0,2.285]
[1727188469773,0.38472,2599.1,2599.0,2.285]
[1727188469972,0.38476,2598.9,2598.6,3.2078]
[1727188470174,4.70182,2599.1,2598.6,5.4928]
[1727188470566,0.38478,2598.7,2598.6,5.4928]
[1727188470779,0.38478,2598.7,2598.6,2.285]
[1727188471075,0.38478,2598.8,2598.6,2.285]
[1727188471276,3.74,2599.1,2598.7,3.2078]
[1727188471668,6.9478,2599.1,2598.6,2.285]
[1727188471976,0.96186,2599.0,2598.3,3.2078]
[1727188472275,0.38478,2598.7,2598.3,3.2078]
[1727188472575,6.9478,2599.1,2598.3,3.2078]
[1727188472973,0.3848,2598.6,2598.3,3.2078]
[1727188473284,0.38482,2598.5,2598.3,3.2078]
[1727188473575,3.74,2598.7,2598.1,2.3721]
[1727188473776,0.38482,2598.5,2598.1,2.3721]
[1727188474082,4.12479,2598.7,2598.3,3.2078]
[1727188474285,3.74,2598.7,2598.3,3.2078]
[1727188474573,0.3848,2598.6,2598.3,3.2078]
[1727188474780,3.74,2598.7,2598.3,3.2078]
[1727188474973,0.38478,2598.8,2598.3,3.2078]
[1727188475177,3.74,2599.0,2598.7,3.2078]
[1727188475883,4.12475,2599.0,2598.7,3.2078]
[1727188476578,3.74,2599.0,2598.7,3.2078]
[1727188476877,4.12475,2599.0,2598.7,3.2078]
[1727188477478,3.74,2599.0,2598.7,3.2078]
[1727188477672,0.38472,2599.2,2598.7,3.2078]
[1727188477872,3.74,2599.4,2598.7,3.2078]
[1727188477873,0.38475,2599.0,2598.7,3.2078]
[1727188478575,3.33,2599.1,2598.7,3.2078]
[1727188478982,0.38477,2598.8,2598.7,3.2078]
[1727188479480,3.71477,2598.8,2598.7,3.2078]
[1727188479677,14.13993,2598.8,2597.6,3.2078]
[1727188479876,3.33,2598.3,2597.9,3.2078]
[1727188480076,3.33,2598.3,2597.7,4.5221]
[1727188480077,0.38488,2598.1,2597.7,7.7299]
[1727188480384,0.38492,2597.8,2597.7,7.7299]
[1727188480687,3.33,2597.9,2597.7,4.5221]
[1727188480688,3.71491,2597.9,2597.7,4.5221]
[1727188480980,3.7149,2597.9,2597.7,4.5221]
[1727188481186,3.33,2597.9,2597.7,4.5221]
[1727188481578,3.71491,2597.9,2597.7,4.5221]
[1727188481876,0.38492,2597.8,2597.7,4.5221]
[1727188482072,0.38492,2597.8,2597.7,2.3407]
[1727188482677,0.38492,2597.8,2597.1,4.62761]
[1727188482678,3.8496,2597.8,2597.2,3.2078]
[1727188482874,0.38499,2597.3,2597.1,2.2236]
[1727188483081,6.92277,2597.5,2597.1,2.2236]
[1727188483277,3.33,2597.5,2597.1,2.2236]
[1727188483478,3.33,2597.5,2597.1,2.60862]
[1727188483670,3.33,2597.5,2597.1,6.45902]
[1727188483876,6.5378,2597.8,2597.3,3.2078]
[1727188484081,6.5378,2597.8,2597.4,3.2078]
[1727188484477,3.33,2597.8,2597.5,2.215]
[1727188484679,3.33,2597.8,2597.5,2.59996]
[1727188484879,3.33,2598.1,2597.7,3.2078]
[1727188485082,3.71487,2598.1,2597.7,3.2078]
[1727188485280,3.71488,2598.1,2597.7,3.2078]
[1727188485491,3.33,2598.1,2597.7,3.2078]
[1727188485685,3.33,2598.1,2597.7,3.59272]
[1727188485982,3.33,2598.1,2597.9,0.38489]
[1727188486187,3.33,2598.1,2598.0,3.2078]
[1727188486386,3.33,2598.1,2598.0,7.0566]
[1727188486691,3.33,2598.1,2598.0,3.8488]
[1727188486986,3.33,2598.1,2597.9,2.3003]
[1727188487375,3.33,2598.1,2597.6,4.3519]
[1727188487783,3.33,2597.8,2597.5,2.215]
[1727188487976,0.38495,2597.6,2597.5,2.215]
[1727188488684,0.38494,2597.7,2597.5,2.215]
[1727188488893,3.71492,2597.8,2597.5,2.215]
[1727188489385,0.38494,2597.7,2597.5,2.215]
[1727188489581,3.33,2597.8,2597.5,2.215]
[1727188490579,3.33,2597.8,2597.6,0.38495]
[1727188490784,6.5378,2598.1,2597.6,0.38494]
[1727188490988,6.92268,2598.1,2597.6,0.38494]
[1727188491175,6.5378,2598.1,2597.5,2.215]
[1727188491383,3.33,2598.1,2597.5,4.5725]
[1727188491685,3.33,2598.1,2597.8,3.59271]
[1727188491989,3.33,2598.4,2597.9,2.3415]
[1727188492283,3.33,2598.4,2598.1,3.2078]
[1727188492485,3.59259,2598.7,2598.1,3.2078]
[1727188492685,3.33,2598.8,2598.2,0.38485]
[1727188492991,4.16969,2599.0,2598.1,3.2078]
[1727188492992,3.33,2598.5,2598.1,3.2078]
[1727188493180,3.33,2598.5,2598.2,3.59266]
[1727188493385,3.71482,2598.5,2598.1,0.38486]
[1727188493581,3.71482,2598.5,2598.1,0.38487]
[1727188493782,3.2078,2599.0,2598.5,0.3848]
[1727188494093,0.38475,2599.0,2598.3,3.2078]
[1727188494294,3.71474,2599.1,2598.7,0.38478]
[1727188494590,3.71474,2599.1,2598.6,3.2078]
[1727188494591,3.33,2599.1,2598.6,3.2078]
[1727188494777,3.33,2599.1,2598.9,3.59254]
[1727188494978,3.33,2599.1,2598.9,3.2078]
[1727188495184,3.33,2599.1,2599.0,0.38474]
[1727188495390,3.33,2599.1,2598.9,3.2078]
[1727188495886,3.71473,2599.1,2598.9,3.2078]
[1727188496487,0.38477,2598.8,2598.7,2.02]
[1727188496689,3.71477,2598.8,2598.7,2.02]
[1727188496891,4.16965,2599.1,2598.7,2.02]
[1727188496892,3.33,2599.1,2598.7,2.02]
[1727188497085,0.38475,2599.0,2598.7,2.02]
[1727188497288,3.33,2599.1,2598.7,2.40478]
[1727188497489,3.33,2599.1,2598.8,4.11199893]
[1727188497795,0.38474,2599.0,2598.7,5.2278]
[1727188497982,3.33,2599.1,2598.7,5.2278]
[1727188498184,3.33,2599.1,2598.7,5.61258]
[1727188498185,3.71473,2599.1,2598.7,5.61258]
[1727188498493,3.71473,2599.1,2598.7,5.2278]
[1727188498494,3.33,2599.1,2598.7,5.2278]
[1727188498887,0.38475,2599.0,2598.7,5.2278]
[1727188499091,3.33,2599.1,2598.7,5.2278]
[1727188499282,3.71473,2599.1,2598.7,5.61258]
[1727188499592,3.33,2599.1,2598.7,5.2278]
[1727188499784,0.38476,2598.9,2598.7,5.2278]
[1727188500192,0.38475,2599.0,2598.7,5.2278]
[1727188500490,0.962,2598.6,2597.9,7.4215]
[1727188500693,3.71486,2598.2,2598.1,3.2078]
[1727188500897,0.38492,2597.8,2597.5,3.2078]
[1727188501193,3.33,2597.7,2597.5,3.2078]
[1727188501489,4.16998,2598.2,2597.6,0.38495]
[1727188501490,3.33,2598.0,2597.6,0.38495]
[1727188501698,0.96208,2598.5,2597.6,0.38495]
[1727188501699,3.33,2598.3,2597.9,0.38489]
[1727188501889,3.71484,2598.3,2597.9,4.5581]
[1727188502191,3.71481,2598.6,2598.2,0.38486]
[1727188502397,3.71481,2598.6,2598.3,3.2078]
[1727188502788,3.33,2598.6,2598.3,3.2078]
[1727188503092,0.38485,2598.3,2597.9,4.5581]
[1727188503287,3.33,2598.3,2598.1,3.2078]
[1727188504095,3.33,2598.3,2598.0,2.8578]
[1727188504282,3.33,2598.3,2597.9,4.5581]
[1727188504483,3.33,2598.3,2597.9,7.7659]
[1727188504484,0.38488,2598.1,2597.9,7.7659]
[1727188504794,3.33,2598.3,2597.9,7.7659]
[1727188504984,0.38487,2598.2,2597.9,7.7659]
[1727188505594,3.33,2598.3,2597.9,8.1508]
[1727188505790,3.2078,2598.7,2598.0,0.38488]
[1727188505791,0.38482,2598.5,2598.0,0.38488]
[1727188505991,3.33,2598.6,2597.9,5.465]
[1727188506184,0.38482,2598.5,2598.0,0.38487]
[1727188506492,3.33,2598.9,2597.9,7.881]
[1727188506788,3.33,2598.9,2598.3,0.38484]
[1727188506789,0.3848,2598.7,2598.3,0.38484]
[1727188506986,3.33,2598.9,2598.5,0.3848]
[1727188507188,3.33,2598.9,2598.6,0.38479]
[1727188507588,0.38473,2599.1,2598.5,3.2078]
[1727188507782,0.38473,2599.1,2598.6,2.3322]
[1727188507987,3.33,2599.2,2598.9,0.38474]
[1727188508290,6.92246,2599.6,2599.2,0.3847]
[1727188508486,6.92246,2599.6,2599.3,0.38469]
[1727188508487,6.5378,2599.6,2599.3,0.38469]
[1727188508689,3.33,2599.6,2599.3,0.38469]
[1727188508989,3.33,2599.6,2599.4,0.38468]
[1727188509188,0.38463,2599.8,2599.4,0.38467]
[1727188509491,6.5378,2599.9,2599.4,3.2078]
[1727188509492,3.33,2599.9,2599.4,3.2078]
[1727188509682,0.38464,2599.7,2599.5,2.2654]
[1727188509889,0.38463,2599.8,2599.5,2.2654]
[1727188510083,3.33,2599.9,2599.5,6.1118]
[1727188510283,0.38457,2600.2,2599.7,0.38463]
[1727188510585,3.74,2600.0,2599.6,4.32311112]
[1727188510791,0.38462,2599.8,2599.5,2.2654]
[1727188510989,0.38461,2599.9,2599.5,2.2654]
[1727188511200,3.74,2600.4,2599.6,8.31151742]
[1727188511487,3.74,2600.7,2599.8,3.2078]
[1727188511891,0.38451,2600.6,2600.1,3.59236]
[1727188512093,0.38451,2600.6,2600.1,3.2078]
[1727188512294,4.12449,2600.7,2600.2,4.13161068]
[1727188512593,3.74,2600.7,2600.3,2.2463]
[1727188512981,0.38446,2600.9,2600.5,0.38451]
[1727188513292,0.38452,2600.5,2600.4,2.007]
[1727188513988,3.59232,2600.5,2600.4,2.007]
[1727188514990,3.59232,2600.5,2599.7,2.007]
[1727188514991,13.0534,2600.5,2599.7,2.007]
[1727188515185,4.1246,2600.0,2599.7,2.007]
[1727188515488,0.38461,2599.9,2599.7,2.007]
[1727188515694,3.2078,2600.2,2599.5,4.2433]
[1727188515883,6.9478,2600.9,2599.9,3.2078]
[1727188516088,3.2078,2600.6,2599.9,2.3916]
[1727188516289,0.38453,2600.5,2599.9,2.007]
[1727188516486,3.74,2600.5,2599.9,2.007]
[1727188516685,6.9478,2600.2,2599.5,2.2363]
[1727188516886,6.9478,2600.2,2599.2,3.2078]
[1727188517190,0.38461,2599.9,2599.5,3.2078]
[1727188517387,0.3846,2600.0,2599.5,3.2078]
[1727188517583,0.38461,2599.9,2599.5,3.2078]
[1727188517796,0.3846,2600.0,2599.5,3.2078]
[1727188518001,0.38462,2599.9,2599.5,3.2078]
[1727188518297,6.9478,2600.2,2599.5,3.2078]
[1727188518491,0.38461,2599.9,2599.5,3.2078]
[1727188518792,3.74,2599.8,2599.0,3.2078]
[1727188519198,3.59247,2599.5,2598.9,2.006]
[1727188519500,3.2078,2599.5,2598.9,2.006]
[1727188519691,0.38471,2599.2,2598.9,2.006]
[1727188520293,0.3847,2599.3,2598.8,4.5749]
[1727188520491,3.74,2599.4,2598.8,4.5749]
[1727188520901,0.3847,2599.3,2598.8,4.5749]
[1727188521087,3.74,2599.4,2598.8,4.5749]
[1727188521295,0.3847,2599.3,2598.8,4.5749]
[1727188521693,3.74,2599.4,2598.8,4.5749]
[1727188521894,0.38467,2599.5,2599.1,3.2078]
[1727188522195,3.2078,2599.5,2598.8,4.5749]
[1727188522394,0.38469,2599.4,2598.8,4.5749]
[1727188522596,3.2078,2599.5,2598.8,4.5749]
[1727188522902,3.74,2599.4,2598.8,4.5749]
[1727188523196,0.38472,2599.2,2598.8,4.5749]
[1727188523500,6.9478,2599.8,2599.0,3.2078]
[1727188523696,3.59242,2599.8,2599.1,0.38472]
[1727188523909,3.2078,2599.8,2599.3,3.2078]